fUSD/lending_fUSD_20241119
["ID","MTS","AMOUNT","RATE_DAILY","PERIOD"]
[342653685,1732026641153,-500.0,9.998e-05,2]
[342653686,1732026641162,-500.0,9.998e-05,2]
[342653687,1732026641172,-500.0,9.998e-05,2]
[342653688,1732026641181,-500.0,9.998e-05,2]
[342653689,1732026641191,-500.0,9.998e-05,2]
[342653690,1732026641201,-500.0,9.998e-05,2]
[342653691,1732026641210,-500.0,9.998e-05,2]
[342653692,1732026641219,-500.0,9.998e-05,2]
[342653693,1732026641228,-500.0,9.998e-05,2]
[342653694,1732026641238,-500.0,9.998e-05,2]
[342653695,1732026641248,-500.0,9.998e-05,2]
[342653696,1732026641257,-500.0,9.998e-05,2]
[342653697,1732026641267,-500.0,9.998e-05,2]
[342653698,1732026641276,-500.0,9.998e-05,2]
[342653699,1732026641285,-500.0,9.998e-05,2]
[342653700,1732026641294,-500.0,9.998e-05,2]
[342653701,1732026641303,-500.0,9.998e-05,2]
[342653702,1732026641312,-500.0,9.998e-05,2]
[342653703,1732026641321,-500.0,9.998e-05,2]
[342653704,1732026641330,-500.0,9.998e-05,2]
[342653705,1732026641340,-500.0,9.998e-05,2]
[342653706,1732026641351,-500.0,9.998e-05,2]
[342653707,1732026641360,-500.0,9.998e-05,2]
[342653708,1732026641369,-500.0,9.998e-05,2]
[342653709,1732026641378,-5324.23405532,9.999e-05,2]
[342653710,1732026641387,-2761.39,9.999e-05,2]
[342653711,1732026641396,-151.07,9.999e-05,2]
[342653712,1732026641407,-500.0,9.999e-05,2]
[342653713,1732026641417,-500.0,9.999e-05,2]
[342653714,1732026641427,-578.93,9.999e-05,2]
[342653715,1732026641436,-500.0,9.999e-05,2]
[342653716,1732026641445,-500.0,9.999e-05,2]
[342653717,1732026641456,-500.0,9.999e-05,2]
[342653718,1732026641465,-500.0,9.999e-05,2]
[342653719,1732026641474,-508.27,9.999e-05,2]
[342653720,1732026641483,-606.26480625,9.999e-05,2]
[342653721,1732026641492,-500.0,9.999e-05,2]
[342653722,1732026641502,-607.63020543,9.999e-05,2]
[342653723,1732026641512,-500.0,9.999e-05,2]
[342653724,1732026641521,-213.26,9.999e-05,2]
[342653725,1732026641530,-615.32,9.999e-05,2]
[342653726,1732026641539,-500.0,9.999e-05,2]
[342653727,1732026641549,-514.83349196,9.999e-05,2]
[342653728,1732026641558,-1500.0,9.999e-05,2]
[342653729,1732026641567,-500.0,9.999e-05,2]
[342653730,1732026641576,-500.0,9.999e-05,2]
[342653731,1732026641585,-500.0,9.999e-05,2]
[342653732,1732026641594,-192.41830881,9.999e-05,2]
[342653733,1732026641604,-500.0,9.999e-05,2]
[342653734,1732026641613,-500.0,9.999e-05,2]
[342653735,1732026641622,-500.0,9.999e-05,2]
[342653736,1732026641631,-500.0,9.999e-05,2]
[342653737,1732026641641,-500.0,9.999e-05,2]
[342653738,1732026641649,-500.0,9.999e-05,2]
[342653739,1732026641658,-500.0,9.999e-05,2]
[342653740,1732026641667,-255.37468142,9.999e-05,2]
[342653741,1732026641676,-500.0,9.999e-05,2]
[342653742,1732026641685,-240.05767951,9.999e-05,2]
[342653743,1732026641694,-1166.9,9.999e-05,2]
[342653744,1732026641705,-1166.9,9.999e-05,2]
[342653745,1732026641714,-1166.9,9.999e-05,2]
[342653746,1732026641723,-1166.9,9.999e-05,2]
[342653747,1732026641733,-1166.9,9.999e-05,2]
[342653748,1732026641742,-1166.9,9.999e-05,2]
[342653749,1732026641752,-1166.9,9.999e-05,2]
[342653750,1732026641761,-1166.9,9.999e-05,2]
[342653751,1732026641770,-1166.9,9.999e-05,2]
[342653752,1732026641780,-1166.9,9.999e-05,2]
[342653753,1732026641789,-1166.9,9.999e-05,2]
[342653754,1732026641800,-1166.9,9.999e-05,2]
[342653755,1732026641810,-1166.9,9.999e-05,2]
[342653756,1732026641821,-1166.9,9.999e-05,2]
[342653757,1732026641829,-1166.9,9.999e-05,2]
[342653758,1732026641839,-1166.9,9.999e-05,2]
[342653759,1732026641851,-1166.9,9.999e-05,2]
[342653760,1732026641861,-1166.9,9.999e-05,2]
[342653761,1732026641871,-1166.9,9.999e-05,2]
[342653762,1732026641880,-1166.9,9.999e-05,2]
[342653763,1732026641889,-1166.9,9.999e-05,2]
[342653764,1732026641899,-1167.03,9.999e-05,2]
[342653765,1732026641908,-500.0,9.999e-05,2]
[342653766,1732026641919,-500.0,9.999e-05,2]
[342653767,1732026641932,-500.0,9.999e-05,2]
[342653768,1732026641942,-500.0,9.999e-05,2]
[342653769,1732026641959,-500.0,9.999e-05,2]
[342653770,1732026641968,-500.0,9.999e-05,2]
[342653771,1732026641978,-500.0,9.999e-05,2]
[342653772,1732026641989,-394.91005728,9.999e-05,2]
[342653773,1732026642000,-500.0,9.999e-05,2]
[342653774,1732026642009,-500.0,9.999e-05,2]
[342653775,1732026642019,-500.0,9.999e-05,2]
[342653776,1732026642028,-500.0,9.999e-05,2]
[342653777,1732026642037,-500.0,9.999e-05,2]
[342653778,1732026642046,-500.0,9.999e-05,2]
[342653779,1732026642055,-500.0,9.999e-05,2]
[342653780,1732026642065,-500.0,9.999e-05,2]
[342653781,1732026642074,-500.0,9.999e-05,2]
[342653782,1732026642083,-500.0,9.999e-05,2]
[342653783,1732026642092,-500.0,9.999e-05,2]
[342653784,1732026642101,-500.0,9.999e-05,2]
[342653785,1732026642110,-488.96,9.999e-05,2]
[342653786,1732026642119,-500.0,9.999e-05,2]
[342653787,1732026642128,-500.0,9.999e-05,2]
[342653788,1732026642138,-500.0,9.999e-05,2]
[342653789,1732026642148,-500.0,9.999e-05,2]
[342653790,1732026642159,-500.0,9.999e-05,2]
[342653791,1732026642169,-500.0,9.999e-05,2]
[342653792,1732026642179,-500.0,9.999e-05,2]
[342653793,1732026642188,-273.65360865,9.999e-05,2]
[342653794,1732026642198,-500.0,9.999e-05,2]
[342653795,1732026642207,-500.0,9.999e-05,2]
[342653796,1732026642216,-500.0,9.999e-05,2]
[342653797,1732026642225,-500.0,9.999e-05,2]
[342653798,1732026642234,-160.75,9.999e-05,2]
[342653799,1732026642244,-500.0,9.999e-05,2]
[342653800,1732026642253,-570.56,9.999e-05,2]
[342653801,1732026642262,-468.83,9.999e-05,2]
[342653802,1732026642272,-972.89,9.999e-05,2]
[342653803,1732026642281,-500.0,9.999e-05,2]
[342653804,1732026642290,-500.0,9.999e-05,2]
[342653805,1732026642299,-500.0,9.999e-05,2]
[342653806,1732026642308,-589.91,9.999e-05,2]
[342653807,1732026642317,-500.0,9.999e-05,2]
[342653808,1732026642326,-500.0,9.999e-05,2]
[342653809,1732026642335,-500.0,9.999e-05,2]
[342653810,1732026642345,-273.17471725,9.999e-05,2]
[342653811,1732026642354,-500.0,9.999e-05,2]
[342653812,1732026642363,-500.0,9.999e-05,2]
[342653813,1732026642373,-500.0,9.999e-05,2]
[342653814,1732026642382,-500.0,9.999e-05,2]
[342653815,1732026642391,-500.0,9.999e-05,2]
[342653816,1732026642400,-500.0,9.999e-05,2]
[342653817,1732026642410,-500.0,9.999e-05,2]
[342653818,1732026642419,-500.0,9.999e-05,2]
[342653819,1732026642428,-500.0,9.999e-05,2]
[342653820,1732026642437,-500.0,9.999e-05,2]
[342653821,1732026642447,-500.0,9.999e-05,2]
[342653822,1732026642458,-500.0,9.999e-05,2]
[342653823,1732026642467,-500.0,9.999e-05,2]
[342653824,1732026642476,-613.5073699,9.999e-05,2]
[342653825,1732026642485,-500.0,9.999e-05,2]
[342653826,1732026642494,-531.43,9.999e-05,2]
[342653827,1732026642504,-500.0,9.999e-05,2]
[342653828,1732026642513,-500.0,9.999e-05,2]
[342653829,1732026642523,-349.76,9.999e-05,2]
[342653830,1732026642532,-500.0,9.999e-05,2]
[342653831,1732026642541,-500.0,9.999e-05,2]
[342653832,1732026642551,-500.0,9.999e-05,2]
[342653833,1732026642560,-500.0,9.999e-05,2]
[342653834,1732026642569,-500.0,9.999e-05,2]
[342653835,1732026642578,-500.0,9.999e-05,2]
[342653836,1732026642587,-500.0,9.999e-05,2]
[342653837,1732026642596,-500.0,9.999e-05,2]
[342653838,1732026642605,-500.0,9.999e-05,2]
[342653839,1732026642614,-531.61086751,9.999e-05,2]
[342653840,1732026642623,-409.94238562,9.999e-05,2]
[342653841,1732026642632,-500.0,9.999e-05,2]
[342653842,1732026642641,-500.0,9.999e-05,2]
[342653843,1732026642650,-500.0,9.999e-05,2]
[342653844,1732026642661,-500.0,9.999e-05,2]
[342653845,1732026642671,-216.02192436,9.999e-05,2]
[342653846,1732026642681,-500.0,9.999e-05,2]
[342653847,1732026642691,-500.0,9.999e-05,2]
[342653848,1732026642703,-500.0,9.999e-05,2]
[342653849,1732026642712,-500.0,9.999e-05,2]
[342653850,1732026642722,-500.0,9.999e-05,2]
[342653851,1732026642731,-152.76549431,9.999e-05,2]
[342653852,1732026642741,-1896.24,9.999e-05,2]
[342653853,1732026642751,-1896.24,9.999e-05,2]
[342653854,1732026642760,-1896.24,9.999e-05,2]
[342653855,1732026642770,-1896.24,9.999e-05,2]
[342653856,1732026642780,-1896.24,9.999e-05,2]
[342653857,1732026642789,-1896.24,9.999e-05,2]
[342653858,1732026642798,-1896.24,9.999e-05,2]
[342653859,1732026642807,-1896.24,9.999e-05,2]
[342653860,1732026642817,-1896.24,9.999e-05,2]
[342653861,1732026642826,-1896.24,9.999e-05,2]
[342653862,1732026642835,-1896.24,9.999e-05,2]
[342653863,1732026642845,-1896.24,9.999e-05,2]
[342653864,1732026642854,-1896.24,9.999e-05,2]
[342653865,1732026642864,-1896.24,9.999e-05,2]
[342653866,1732026642872,-1896.24,9.999e-05,2]
[342653867,1732026642882,-1896.24,9.999e-05,2]
[342653868,1732026642892,-1896.24,9.999e-05,2]
[342653869,1732026642902,-1896.24,9.999e-05,2]
[342653870,1732026642911,-1896.24,9.999e-05,2]
[342653871,1732026642920,-1896.24,9.999e-05,2]
[342653872,1732026642930,-1896.24,9.999e-05,2]
[342653873,1732026642940,-1896.28683687,9.999e-05,2]
[342653874,1732026642953,-500.0,9.999e-05,2]
[342653875,1732026642962,-500.0,9.999e-05,2]
[342653876,1732026642971,-500.0,9.999e-05,2]
[342653877,1732026642980,-500.0,9.999e-05,2]
[342653878,1732026642991,-500.0,9.999e-05,2]
[342653879,1732026643000,-575.39,9.999e-05,2]
[342653880,1732026643010,-500.0,9.999e-05,2]
[342653881,1732026643020,-500.0,9.999e-05,2]
[342653882,1732026643029,-500.0,9.999e-05,2]
[342653883,1732026643039,-500.0,9.999e-05,2]
[342653884,1732026643049,-298.41,9.999e-05,2]
[342653885,1732026643058,-319.67,9.999e-05,2]
[342653886,1732026643067,-500.0,9.999e-05,2]
[342653887,1732026643077,-500.0,9.999e-05,2]
[342653888,1732026643087,-500.0,9.999e-05,2]
[342653890,1732026643096,-500.0,9.999e-05,2]
[342653891,1732026643106,-500.0,9.999e-05,2]
[342653892,1732026643116,-500.0,9.999e-05,2]
[342653893,1732026643126,-500.0,9.999e-05,2]
[342653894,1732026643138,-500.0,9.999e-05,2]
[342653895,1732026643147,-500.0,9.999e-05,2]
[342653896,1732026643156,-500.0,9.999e-05,2]
[342653897,1732026643165,-500.0,9.999e-05,2]
[342653898,1732026643175,-500.0,9.999e-05,2]
[342653899,1732026643184,-500.0,9.999e-05,2]
[342653900,1732026643193,-616.14305419,9.999e-05,2]
[342653901,1732026643203,-500.0,9.999e-05,2]
[342653902,1732026643212,-500.0,9.999e-05,2]
[342653903,1732026643221,-500.0,9.999e-05,2]
[342653904,1732026643230,-500.0,9.999e-05,2]
[342653905,1732026643239,-500.0,9.999e-05,2]
[342653906,1732026643249,-500.0,9.999e-05,2]
[342653907,1732026643258,-500.0,9.999e-05,2]
[342653908,1732026643267,-500.0,9.999e-05,2]
[342653909,1732026643276,-500.0,9.999e-05,2]
[342653910,1732026643285,-500.0,9.999e-05,2]
[342653911,1732026643294,-500.0,9.999e-05,2]
[342653912,1732026643304,-500.0,9.999e-05,2]
[342653913,1732026643313,-500.0,9.999e-05,2]
[342653914,1732026643322,-500.0,9.999e-05,2]
[342653915,1732026643332,-500.0,9.999e-05,2]
[342653916,1732026643341,-500.0,9.999e-05,2]
[342653917,1732026643350,-327.93702578,9.999e-05,2]
[342653918,1732026643359,-500.0,9.999e-05,2]
[342653919,1732026643368,-500.0,9.999e-05,2]
[342653920,1732026643378,-500.0,9.999e-05,2]
[342653921,1732026643387,-500.0,9.999e-05,2]
[342653922,1732026643396,-500.0,9.999e-05,2]
[342653923,1732026643405,-500.0,9.999e-05,2]
[342653924,1732026643415,-163.88785559,9.999e-05,2]
[342653926,1732026643424,-500.0,9.999e-05,2]
[342653928,1732026643433,-243.03,9.999e-05,2]
[342653929,1732026643442,-500.0,9.999e-05,2]
[342653930,1732026643453,-500.0,9.999e-05,2]
[342653931,1732026643462,-500.0,9.999e-05,2]
[342653932,1732026643472,-500.0,9.999e-05,2]
[342653933,1732026643482,-500.0,9.999e-05,2]
[342653934,1732026643492,-500.0,9.999e-05,2]
[342653935,1732026643501,-500.0,9.999e-05,2]
[342653936,1732026643510,-500.0,9.999e-05,2]
[342653937,1732026643519,-500.0,9.999e-05,2]
[342653938,1732026643529,-500.0,9.999e-05,2]
[342653939,1732026643538,-500.0,9.999e-05,2]
[342653940,1732026643547,-500.0,9.999e-05,2]
[342653941,1732026643556,-500.0,9.999e-05,2]
[342653942,1732026643566,-500.0,9.999e-05,2]
[342653943,1732026643575,-500.0,9.999e-05,2]
[342653944,1732026643585,-598.3,9.999e-05,2]
[342653949,1732026643768,-500.0,9.999e-05,2]
[342653950,1732026643778,-544.32,9.999e-05,2]
[342653951,1732026643788,-500.0,9.999e-05,2]
[342653952,1732026643797,-388.22,9.999e-05,2]
[342653953,1732026643807,-406.43,9.999e-05,2]
[342653954,1732026643816,-682.0,0.0001,2]
[342653955,1732026643826,-493058.11205096,0.0001,2]
[342653956,1732026643835,-9384.4605522,0.0001,2]
[342653957,1732026643844,-13367113.7598916,0.0001,2]
[342653958,1732026643854,-1000.0,0.0001,2]
[342653959,1732026643864,-1000.0,0.0001,2]
[342653960,1732026643874,-5800.0,0.0001,2]
[342653961,1732026643883,-150.0,0.0001,2]
[342653962,1732026643892,-150.0,0.0001,2]
[342653963,1732026643901,-150.648,0.0001,2]
[342653964,1732026643911,-156.298,0.0001,2]
[342653965,1732026643921,-250.0,0.0001,2]
[342653966,1732026643930,-250.0,0.0001,2]
[342653967,1732026643940,-1000.0,0.0001,2]
[342653968,1732026643955,-1000.0,0.0001,2]
[342653969,1732026643964,-215.0,0.0001,2]
[342653970,1732026643974,-215.0,0.0001,2]
[342653971,1732026643983,-215.0,0.0001,2]
[342653972,1732026643993,-215.0,0.0001,2]
[342653973,1732026644002,-215.0,0.0001,2]
[342653974,1732026644011,-215.0,0.0001,2]
[342653975,1732026644022,-215.0,0.0001,2]
[342653976,1732026644031,-215.0,0.0001,2]
[342653977,1732026644040,-215.0,0.0001,2]
[342653978,1732026644049,-215.0,0.0001,2]
[342653979,1732026644058,-215.0,0.0001,2]
[342653980,1732026644067,-208.0,0.0001,2]
[342653981,1732026644077,-208.0,0.0001,2]
[342653982,1732026644087,-208.0,0.0001,2]
[342653983,1732026644096,-204.0,0.0001,2]
[342653984,1732026644105,-208.0,0.0001,2]
[342653985,1732026644115,-204.0,0.0001,2]
[342653986,1732026644124,-204.0,0.0001,2]
[342653987,1732026644134,-208.0,0.0001,2]
[342653988,1732026644144,-204.0,0.0001,2]
[342653989,1732026644153,-208.0,0.0001,2]
[342653990,1732026644162,-204.0,0.0001,2]
[342653991,1732026644171,-208.0,0.0001,2]
[342653992,1732026644182,-204.0,0.0001,2]
[342653993,1732026644191,-208.0,0.0001,2]
[342653994,1732026644200,-204.0,0.0001,2]
[342653995,1732026644212,-208.0,0.0001,2]
[342653996,1732026644222,-204.0,0.0001,2]
[342653997,1732026644231,-208.0,0.0001,2]
[342653998,1732026644240,-208.0,0.0001,2]
[342653999,1732026644250,-730.77,0.0001,2]
[342654000,1732026644260,-162.87050298,0.0001,7]
[342654001,1732026644270,-3977.94313265,0.0001,2]
[342654002,1732026644279,-1000.0,0.0001,2]
[342654003,1732026644289,-5800.0,0.0001,2]
[342654004,1732026644298,-250.0,0.0001,2]
[342654005,1732026644307,-250.0,0.0001,2]
[342654006,1732026644317,-250.0,0.0001,2]
[342654007,1732026644326,-250.0,0.0001,2]
[342654008,1732026644335,-250.0,0.0001,2]
[342654009,1732026644345,-250.0,0.0001,2]
[342654010,1732026644354,-250.0,0.0001,2]
[342654011,1732026644364,-250.0,0.0001,2]
[342654012,1732026644373,-250.0,0.0001,2]
[342654013,1732026644382,-250.0,0.0001,2]
[342654014,1732026644391,-250.0,0.0001,2]
[342654015,1732026644400,-250.0,0.0001,2]
[342654016,1732026644410,-250.0,0.0001,2]
[342654017,1732026644419,-250.0,0.0001,2]
[342654018,1732026644429,-250.0,0.0001,2]
[342654019,1732026644438,-250.0,0.0001,2]
[342654020,1732026644448,-250.0,0.0001,2]
[342654021,1732026644460,-250.0,0.0001,2]
[342654022,1732026644470,-250.0,0.0001,2]
[342654023,1732026644479,-250.0,0.0001,2]
[342654024,1732026644489,-250.0,0.0001,2]
[342654025,1732026644498,-250.0,0.0001,2]
[342654026,1732026644508,-250.0,0.0001,2]
[342654027,1732026644517,-478.6,0.0001,2]
[342654028,1732026644528,-99999.999999,0.0001,2]
[342654029,1732026644537,-202.0,0.0001,2]
[342654030,1732026644547,-202.0,0.0001,2]
[342654031,1732026644556,-202.0,0.0001,2]
[342654032,1732026644566,-202.0,0.0001,2]
[342654033,1732026644575,-202.0,0.0001,2]
[342654034,1732026644585,-202.0,0.0001,2]
[342654035,1732026644595,-202.0,0.0001,2]
[342654036,1732026644604,-202.0,0.0001,2]
[342654037,1732026644614,-202.0,0.0001,2]
[342654038,1732026644623,-202.0,0.0001,2]
[342654039,1732026644632,-800.0,0.0001,2]
[342654040,1732026644641,-800.0,0.0001,2]
[342654041,1732026644651,-800.0,0.0001,2]
[342654042,1732026644660,-800.0,0.0001,2]
[342654043,1732026644669,-800.0,0.0001,2]
[342654044,1732026644679,-5800.0,0.0001,2]
[342654045,1732026644688,-800.0,0.0001,2]
[342654046,1732026644697,-800.0,0.0001,2]
[342654047,1732026644710,-800.0,0.0001,2]
[342654048,1732026644720,-800.0,0.0001,2]
[342654049,1732026644729,-800.0,0.0001,2]
[342654050,1732026644739,-3281.60206283,0.0001,2]
[342654051,1732026644748,-2000.0,0.0001,2]
[342654052,1732026644757,-200.0,0.0001,2]
[342654053,1732026644767,-800.0,0.0001,2]
[342654054,1732026644776,-800.0,0.0001,2]
[342654055,1732026644786,-800.0,0.0001,2]
[342654056,1732026644795,-800.0,0.0001,2]
[342654057,1732026644805,-300.0,0.0001,2]
[342654058,1732026644814,-1926.0,0.0001,2]
[342654059,1732026644823,-1260.0,0.0001,2]
[342654060,1732026644833,-920.0,0.0001,2]
[342654061,1732026644842,-814.0,0.0001,2]
[342654062,1732026644851,-3747.0,0.0001,2]
[342654063,1732026644861,-3513.0,0.0001,2]
[342654064,1732026644870,-2000.0,0.0001,2]
[342654065,1732026644880,-150.0,0.0001,2]
[342654066,1732026644889,-150.0,0.0001,2]
[342654067,1732026644899,-250.48412212,0.0001,2]
[342654068,1732026644908,-200.0,0.0001,2]
[342654069,1732026644918,-175.58327229,0.0001,2]
[342654070,1732026644928,-600.0,0.0001,2]
[342654071,1732026644939,-3631.40770095,0.0001,2]
[342654072,1732026644957,-250000.0,0.0001,2]
[342654073,1732026644967,-2000.0,0.0001,2]
[342654074,1732026644976,-200.0,0.0001,2]
[342654075,1732026644987,-1092.0,0.0001,2]
[342654076,1732026644996,-3000.0,0.0001,2]
[342654077,1732026645006,-1007.0,0.0001,2]
[342654078,1732026645016,-6940.10312447,0.0001,2]
[342654079,1732026645026,-1000.0,0.0001,2]
[342654080,1732026645036,-1000.0,0.0001,2]
[342654081,1732026645046,-1000.0,0.0001,2]
[342654082,1732026645055,-1000.0,0.0001,2]
[342654083,1732026645066,-1000.0,0.0001,2]
[342654084,1732026645075,-1000.0,0.0001,2]
[342654085,1732026645084,-1000.0,0.0001,2]
[342654086,1732026645094,-1000.0,0.0001,2]
[342654087,1732026645103,-1000.0,0.0001,2]
[342654088,1732026645113,-1000.0,0.0001,2]
[342654089,1732026645123,-1000.0,0.0001,2]
[342654090,1732026645132,-1000.0,0.0001,2]
[342654091,1732026645142,-1000.0,0.0001,2]
[342654092,1732026645152,-1000.0,0.0001,2]
[342654093,1732026645162,-11563.17004689,0.0001,2]
[342654094,1732026645171,-992.446819,0.0001,2]
[342654095,1732026645182,-150.0,0.0001,2]
[342654096,1732026645192,-500.0,0.0001,2]
[342654097,1732026645201,-500.0,0.0001,2]
[342654098,1732026645215,-500.0,0.0001,2]
[342654099,1732026645226,-500.0,0.0001,2]
[342654100,1732026645236,-500.0,0.0001,2]
[342654101,1732026645248,-500.0,0.0001,2]
[342654102,1732026645258,-500.0,0.0001,2]
[342654103,1732026645268,-843.60187467,0.0001,2]
[342654104,1732026645277,-2327140.08118832,0.0001,2]
[342654105,1732026645528,-1379.86572107,0.0001,2]
[342654106,1732026645543,-10949.79366079,0.0001,2]
[342654107,1732026645554,-352.10604785,0.0001,2]
[342654108,1732026645566,-28000.0,0.0001,2]
[342654109,1732026645577,-9177.7,0.0001,2]
[342654110,1732026645588,-92327.61318979,0.0001,2]
[342654111,1732026645730,-650.35801433,0.0001,2]
[342654112,1732026645789,-500.0,9.898e-05,2]
[342654113,1732026645798,-500.0,9.998e-05,2]
[342654114,1732026645807,-521.69,9.999e-05,2]
[342654115,1732026645816,-73728.31,0.0001,2]
[342654116,1732026645827,-867.27948,0.0001,2]
[342654117,1732026645839,-5492.97479356,0.0001,2]
[342654118,1732026645862,-9202.4154804,0.0001,2]
[342654119,1732026645874,-956.32000006,0.0001,2]
[342654120,1732026646113,-480.19000003,0.0001,2]
[342654123,1732026646125,-2593.13343541,0.0001,2]
[342654125,1732026646136,-91771.96030009,0.0001,2]
[342654127,1732026646147,-673.43749022,0.0001,2]
[342654128,1732026646158,-2959.20748441,0.0001,2]
[342654135,1732026646243,-150.0,9.99e-05,2]
[342654137,1732026646253,-2339.98720484,0.0001,2]
[342654139,1732026646364,-2510.30121635,0.0001,2]
[342654140,1732026646376,-32534.9495,0.0001,2]
[342654142,1732026693362,-215.0,8.59e-05,2]
[342654143,1732026696456,-215.0,8.77e-05,2]
[342654144,1732026953886,150.0,8.219e-05,2]
[342654145,1732026953910,261.27413227,8.219e-05,2]
[342654146,1732026953937,703.16586773,8.219e-05,2]
[342654148,1732027172796,3000.0,0.0001,120]
[342654149,1732027254296,1218.0,0.00023,120]
[342654150,1732027453365,1362.01188064,0.00023,120]
[342654151,1732027550080,150.00259347,8.503e-05,2]
[342654152,1732027618532,1058.71,8.219e-05,2]
[342654184,1732027832543,-250.0,8.533e-05,2]
[342654185,1732027832553,-140.91104548,8.533e-05,2]
[342654186,1732027832564,-11.14895452,8.533e-05,2]
[342654187,1732027832574,-1651.0,8.621e-05,2]
[342654188,1732027832583,-210.69,8.653e-05,2]
[342654189,1732027832592,-250.0,8.689e-05,2]
[342654190,1732027832601,-300.0,8.72e-05,2]
[342654191,1732027832611,-10875.99,8.721e-05,2]
[342654192,1732027832620,-212.04,8.75e-05,2]
[342654193,1732027832629,-895.23,8.818e-05,2]
[342654194,1732027832638,-2172.72,8.884e-05,2]
[342654195,1732027832647,-150.0,8.904e-05,2]
[342654196,1732027832657,-1000.0,8.937e-05,2]
[342654197,1732027832666,-200.0,8.945e-05,2]
[342654198,1732027832895,-215.0,8.96e-05,2]
[342654199,1732027832905,-215.0,9.14e-05,2]
[342654200,1732027832914,-5994.3158,9.287e-05,2]
[342654201,1732027832924,-215.0,9.33e-05,2]
[342654202,1732027832933,-6252.35383554,9.377e-05,2]
[342654203,1732027832943,-892.47628881,9.386e-05,2]
[342654204,1732027832953,-150.0,9.386e-05,2]
[342654205,1732027832962,-50186.03777588,9.387e-05,2]
[342654206,1732027835993,-77215.46134017,9.387e-05,2]
[342654207,1732027836181,-5058.0,9.387e-05,2]
[342654208,1732027836193,-198434.74588395,9.387e-05,2]
[342654209,1732027836202,-169218.7837,9.487e-05,2]
[342654210,1732027836212,-23393.6578,9.502e-05,2]
[342654211,1732027836222,-215.0,9.51e-05,2]
[342654212,1732027836231,-150.0,9.51e-05,2]
[342654213,1732027836240,-152.06,9.599e-05,2]
[342654214,1732027836249,-1000.0,9.602e-05,2]
[342654215,1732027836258,-223133.1282,9.602e-05,2]
[342654216,1732027836268,-215.0,9.7e-05,2]
[342654217,1732027836278,-500.0,9.863e-05,2]
[342654218,1732027836288,-185.25455502,9.863e-05,2]
[342654219,1732027836297,-500.0,9.863e-05,2]
[342654220,1732027836307,-500.0,9.863e-05,2]
[342654221,1732027836317,-607.63020543,9.863e-05,2]
[342654222,1732027836326,-500.0,9.863e-05,2]
[342654223,1732027836336,-500.0,9.863e-05,2]
[342654224,1732027836347,-213.26,9.863e-05,2]
[342654225,1732027836357,-527.57,9.863e-05,2]
[342654226,1732027836367,-206.56550534,9.863e-05,2]
[342654227,1732027836376,-150.0,9.863e-05,2]
[342654229,1732027836387,-500.0,9.863e-05,2]
[342654231,1732027836396,-191.81,9.863e-05,2]
[342654233,1732027836405,-500.0,9.863e-05,2]
[342654235,1732027836416,-506.01327779,9.863e-05,2]
[342654237,1732027836426,-500.0,9.863e-05,2]
[342654239,1732027836435,-500.0,9.863e-05,2]
[342654241,1732027836444,-500.0,9.863e-05,2]
[342654243,1732027836453,-1000.0,9.863e-05,2]
[342654245,1732027836462,-972.89,9.863e-05,2]